[Event "1er Open Estival de Marseille"]
[Site "Marseille, France"]
[Date "????.??.??"]
[Round "8.1"]
[White "Espinosa Aranda, Angel"]
[Black "Degraeve, Jean-Marc"]
[Result "1/2-1/2"]
[TimeControl "90+30s/move"]
[WhiteElo "2443"]
[BlackElo "2466"]

1. e4 {[%clk 01:30:55]} {[%emt 00:00:03]} e5 {[%clk 01:23:57]} {[%emt
00:07:03]} 2. Nf3 {[%clk 01:30:42]} {[%emt 00:00:42]} Nc6 {[%clk 01:24:07]}
{[%emt 00:00:20]} 3. Nc3 {[%clk 01:29:45]} {[%emt 00:01:27]} Nf6 {[%clk
01:23:53]} {[%emt 00:00:44]} 4. Bb5 {[%clk 01:29:44]} {[%emt 00:00:31]} Nd4
{[%clk 01:17:28]} {[%emt 00:06:55]} 5. Nxd4 {[%clk 01:22:33]} {[%emt 00:07:42]}
exd4 {[%clk 01:17:08]} {[%emt 00:00:50]} 6. e5 {[%clk 01:22:53]} {[%emt
00:00:11]} dxc3 {[%clk 01:16:44]} {[%emt 00:00:55]} 7. exf6 {[%clk 01:23:14]}
{[%emt 00:00:08]} Qxf6 {[%clk 01:16:21]} {[%emt 00:00:52]} 8. dxc3 {[%clk
01:23:24]} {[%emt 00:00:21]} Qe5+ {[%clk 01:06:57]} {[%emt 00:09:53]} 9. Qe2
{[%clk 01:21:36]} {[%emt 00:02:18]} Qxe2+ {[%clk 01:07:18]} {[%emt 00:00:09]}
10. Bxe2 {[%clk 01:21:41]} {[%emt 00:00:26]} Bc5 {[%clk 01:05:55]} {[%emt
00:01:53]} 11. O-O {[%clk 01:13:16]} {[%emt 00:08:54]} 1/2-1/2

[Event "1er Open Estival de Marseille"]
[Site "Marseille, France"]
[Date "????.??.??"]
[Round "8.4"]
[White "Zienkiewicz, Jan"]
[Black "Alshameary Puente, Ismael"]
[Result "1-0"]
[TimeControl "90+30s/move"]
[WhiteElo "2189"]
[BlackElo "2322"]

1. e4 {[%clk 01:26:12]} {[%emt 00:04:47]} c5 {[%clk 01:30:54]} {[%emt
00:00:07]} 2. Nf3 {[%clk 01:26:35]} {[%emt 00:00:07]} Nc6 {[%clk 01:31:18]}
{[%emt 00:00:06]} 3. d4 {[%clk 01:26:59]} {[%emt 00:00:07]} cxd4 {[%clk
01:31:42]} {[%emt 00:00:06]} 4. Nxd4 {[%clk 01:27:20]} {[%emt 00:00:08]} g6
{[%clk 01:32:07]} {[%emt 00:00:05]} 5. c4 {[%clk 01:26:27]} {[%emt 00:01:23]}
Nf6 {[%clk 01:32:27]} {[%emt 00:00:10]} 6. Nc3 {[%clk 01:26:11]} {[%emt
00:00:47]} d6 {[%clk 01:32:06]} {[%emt 00:00:50]} 7. Be2 {[%clk 01:23:32]}
{[%emt 00:03:09]} Nxd4 {[%clk 01:32:24]} {[%emt 00:00:12]} 8. Qxd4 {[%clk
01:24:00]} {[%emt 00:00:02]} Bg7 {[%clk 01:32:48]} {[%emt 00:00:08]} 9. O-O
{[%clk 01:21:00]} {[%emt 00:03:28]} O-O {[%clk 01:32:04]} {[%emt 00:01:14]} 10.
Qd3 {[%clk 01:21:05]} {[%emt 00:00:25]} Bd7 {[%clk 01:31:18]} {[%emt 00:01:16]}
11. Be3 {[%clk 01:17:58]} {[%emt 00:03:37]} Bc6 {[%clk 01:19:31]} {[%emt
00:12:18]} 12. Rac1 {[%clk 01:14:50]} {[%emt 00:03:38]} a5 {[%clk 01:18:36]}
{[%emt 00:01:24]} 13. b3 {[%clk 01:14:17]} {[%emt 00:01:03]} Nd7 {[%clk
01:18:50]} {[%emt 00:00:17]} 14. f3 {[%clk 01:13:33]} {[%emt 00:01:14]} Nc5
{[%clk 01:19:13]} {[%emt 00:00:06]} 15. Qd2 {[%clk 01:13:31]} {[%emt 00:00:31]}
Be5 {[%clk 01:18:40]} {[%emt 00:01:04]} 16. Rfd1 {[%clk 01:08:29]} {[%emt
00:05:32]} f5 {[%clk 01:05:27]} {[%emt 00:13:44]} 17. exf5 {[%clk 01:07:06]}
{[%emt 00:01:53]} gxf5 {[%clk 01:05:41]} {[%emt 00:00:16]} 18. Bxc5 {[%clk
01:06:06]} {[%emt 00:01:30]} 1-0

[Event "1er Open Estival de Marseille"]
[Site "Marseille, France"]
[Date "????.??.??"]
[Round "8.3"]
[White "Philippe, Guillaume"]
[Black "Pinto, Axel"]
[Result "1-0"]
[TimeControl "90+30s/move"]
[WhiteElo "2362"]
[BlackElo "1800"]

1. e4 {[%clk 01:30:55]} {[%emt 00:00:04]} c5 {[%clk 01:30:47]} {[%emt
00:00:14]} 2. a3 {[%clk 01:31:19]} {[%emt 00:00:07]} g6 {[%clk 01:29:15]}
{[%emt 00:02:02]} 3. Nc3 {[%clk 01:31:38]} {[%emt 00:00:11]} Bg7 {[%clk
01:29:25]} {[%emt 00:00:19]} 4. Bc4 {[%clk 01:31:53]} {[%emt 00:00:15]} Nc6
{[%clk 01:29:13]} {[%emt 00:00:43]} 5. d3 {[%clk 01:32:18]} {[%emt 00:00:05]}
e6 {[%clk 01:28:33]} {[%emt 00:01:10]} 6. Ba2 {[%clk 01:32:42]} {[%emt
00:00:05]} Nge7 {[%clk 01:28:32]} {[%emt 00:00:31]} 7. h4 {[%clk 01:33:06]}
{[%emt 00:00:06]} h5 {[%clk 01:22:54]} {[%emt 00:06:08]} 8. Bg5 {[%clk
01:33:19]} {[%emt 00:00:17]} d6 {[%clk 01:19:31]} {[%emt 00:03:54]} 9. Nge2
{[%clk 01:33:18]} {[%emt 00:00:30]} Nd4 {[%clk 01:17:51]} {[%emt 00:02:11]} 10.
Nxd4 {[%clk 01:33:02]} {[%emt 00:00:46]} cxd4 {[%clk 01:17:27]} {[%emt
00:00:54]} 11. Ne2 {[%clk 01:33:25]} {[%emt 00:00:06]} Qa5+ {[%clk 01:10:47]}
{[%emt 00:07:11]} 12. c3 {[%clk 01:25:45]} {[%emt 00:08:09]} dxc3 {[%clk
00:58:26]} {[%emt 00:12:52]} 13. bxc3 {[%clk 01:26:08]} {[%emt 00:00:07]} Bd7
{[%clk 00:55:45]} {[%emt 00:03:11]} 14. O-O {[%clk 01:25:33]} {[%emt 00:01:05]}
Nc8 {[%clk 00:45:38]} {[%emt 00:10:37]} 15. Qd2 {[%clk 01:14:03]} {[%emt
00:11:58]} Nb6 {[%clk 00:42:49]} {[%emt 00:03:21]} 16. Qf4 {[%clk 01:03:13]}
{[%emt 00:11:16]} f6 {[%clk 00:34:48]} {[%emt 00:08:34]} 17. Bxf6 {[%clk
01:03:27]} {[%emt 00:00:16]} O-O {[%clk 00:34:02]} {[%emt 00:01:16]} 18. Qg5
{[%clk 01:03:53]} {[%emt 00:00:03]} Qxg5 {[%clk 00:34:11]} {[%emt 00:00:21]} 19.
Bxg5 {[%clk 01:04:16]} {[%emt 00:00:07]} Rae8 {[%clk 00:29:49]} {[%emt
00:04:52]} 20. Rab1 {[%clk 01:03:49]} {[%emt 00:00:57]} Kh7 {[%clk 00:26:53]}
{[%emt 00:03:27]} 21. f3 {[%clk 01:00:35]} {[%emt 00:03:42]} d5 {[%clk
00:23:52]} {[%emt 00:03:33]} 22. Be3 {[%clk 00:55:17]} {[%emt 00:05:47]} Bc6
{[%clk 00:20:04]} {[%emt 00:04:19]} 23. Bd4 {[%clk 00:50:53]} {[%emt 00:04:53]}
Bh6 {[%clk 00:18:56]} {[%emt 00:01:39]} 24. Bb3 {[%clk 00:50:42]} {[%emt
00:00:41]} Nc8 {[%clk 00:16:48]} {[%emt 00:02:38]} 25. Bc2 {[%clk 00:49:53]}
{[%emt 00:01:18]} b6 {[%clk 00:13:01]} {[%emt 00:04:18]} 26. a4 {[%clk
00:49:29]} {[%emt 00:00:54]} e5 {[%clk 00:12:16]} {[%emt 00:01:15]} 27. Bf2
{[%clk 00:49:45]} {[%emt 00:00:13]} Nd6 {[%clk 00:12:10]} {[%emt 00:00:37]} 28.
a5 {[%clk 00:49:20]} {[%emt 00:00:54]} dxe4 {[%clk 00:11:51]} {[%emt 00:00:49]}
29. fxe4 {[%clk 00:49:44]} {[%emt 00:00:05]} b5 {[%clk 00:12:07]} {[%emt
00:00:15]} 30. Bxa7 {[%emt 00:01:30]} 1-0